{"text_format":"3","workbook":"xlsx","n_sheets":1,"sheets":["Список МЭ"],"not_rendered":{"defined_names":1},"read":"whole","date_system":"1900"}

{"sheet":"Список МЭ","index":0,"n_rows":184,"n_cols":15,"rows_kept":184,"merged":[[0,0,0,14]]}
["Итоговый протокол муниципального этапа РОШ по предмету Турецкий язык в 2019-2020 учебном году               "]
["№ п/п","Муниципалитет","Полное наименование образовательного учреждения (по уставу)","Фамилия","Имя","Отчество","Класс","Класс участия","Балл МЭ","Макс. балл","Апеляционный балл","Итоговый балл","Статус на муниципальном этапе 2019","Фамилия педагога, подготовившего участника олимпиады","Полное наименование образовательного учреждения (по уставу)"]
[1,"Ново-Савиновский район","МАОУ \"Основная общеобразовательная школа № 30\" Ново-Савиновского района","Байырлы","М. ","М.",5,7,96,100,null,{"$f":"I3","v":96},"Победитель","Нигматзянов Рустам Саматович","МАОУ \"Основная общеобразовательная школа № 30\""]
[2,"Ново-Савиновский район","МАОУ \"Основная общеобразовательная школа № 30\" Ново-Савиновского района","Сарачоглу","Х.",null,4,7,96,100,null,{"$f":"I4","v":96},"Победитель","Бариева Зиля Равилевна ","МАОУ \"Основная общеобразовательная школа № 30\" Ново-Савиновского района"]
[3,"Приволжский район","МБОУ «Гимназия №18» Приволжского района ","Хайруллина ","К.","И.",7,7,96,100,null,96,"Победитель","Садыкова Зухря Закерьевна","МБОУ \"Гимназия №18\""]
[4,"Ново-Савиновский район","МАОУ \"Основная общеобразовательная школа № 30\" Ново-Савиновского района","Калафат","Т.",null,6,7,94,100,null,94,"Победитель","Нигматзянов Рустам Саматович","МАОУ \"Основная общеобразовательная школа № 30\""]
[5,"Кировский район","МАОУ \"Гимназия-интернат №4\" Кировского района ","Хаббанова","М.","И.",7,7,94,100,null,94,"Победитель","Садретдинова Дина Ринатовна","МАОУ \"Гимназия-интернат №4\""]
[6,"Советский район","МБОУ \"Лицей №149 \"Советского района ","Мираламова","С.","З. к.",6,7,92,100,null,92,"Призер","Махмутова Эндже Амировна","Лицей №149"]
[7,"Ново-Савиновский район","МАОУ \"Основная общеобразовательная школа № 30\" Ново-Савиновского района","Байзигитов","А.","А.",6,7,90,100,null,90,"Призер","Нигматзянов Рустам Саматович","МАОУ \"Основная общеобразовательная школа № 30\""]
[8,"Ново-Савиновский район","МАОУ \"Основная общеобразовательная школа № 30\" Ново-Савиновского района","Рзаева","Л.","Д. к.",6,7,90,100,null,90,"Призер","Нигматзянов Рустам Саматович","МАОУ \"Основная общеобразовательная школа № 30\""]
[9,"Советский район","МБОУ «Многопрофильная полилингвальная гимназия №180» Советского района ","Ханафеева ","С.","А.",6,7,90,100,null,90,"Призер","Яруллина А.Т.","МПГ №180"]
[10,"Советский район","МБОУ «Многопрофильная полилингвальная гимназия №180» Советского района ","Нуриева ","С.","Д. к.",7,7,88,100,null,88,"Призер","Яруллина А.Т.","МПГ №180"]
[11,"Советский район","МБОУ «Многопрофильная полилингвальная гимназия №180» Советского района ","Боздаг","К.","К.",5,7,84,100,null,84,"Призер","Яруллина А.Т.","МПГ №180"]
[12,"Ново-Савиновский район","МАОУ \"Лицей-интернат 7\" Ново-Савиновского района","Гумеров ","Ш.","А.",7,7,84,100,null,84,"Призер","Шавалеев Айрат Равилевич","Лицей-интернат №7"]
[13,"Ново-Савиновский район","Инженерный лицей-интернат КНИТУ-КАИ Ново-Савиновского района","Зиганшина","С.","Э.",7,7,84,100,null,84,"Призер","Халиков Индир Рафаилович","Инженерный лицей-интернат КНИТУ-КАИ"]
[14,"Московский район","МБОУ \"Татарская гимназия №2 при КФУ\" Московского района ","Таш ","Ю.","А.",7,7,84,100,null,84,"Призер","Нигматуллина Эндже Табрисовна","Гимназия №2"]
[15,"Московский район","МБОУ \"Гимназия №12 имени Ф.Г.Аитовой\" Московского района","Шентюрк ","З.","М.",4,7,84,100,null,84,"Призер","Акташ Хюсейин Эмин","\"Гимназия №12\""]
[16,"Ново-Савиновский район","Инженерный лицей-интернат КНИТУ-КАИ Ново-Савиновского района","Богданов","М. ","И.",7,7,82,100,null,82,"Призер","Халиков Индир Рафаилович","Инженерный лицей-интернат КНИТУ-КАИ"]
[17,"Советский район","МБОУ «Многопрофильная полилингвальная гимназия №180» Советского района ","Озтурк","Я.","С.",6,7,82,100,null,82,"Призер","Яруллина А.Т.","МПГ №180"]
[18,"Ново-Савиновский район","МАОУ \"Основная общеобразовательная школа № 30\" Ново-Савиновского района","Токтогонов ","А.","Т.",6,7,82,100,null,82,"Призер","Нигматзянов Рустам Саматович","МАОУ \"Основная общеобразовательная школа № 30\""]
[19,"Ново-Савиновский район","МАОУ \"Основная общеобразовательная школа № 30\" Ново-Савиновского района","Арслан","Д.","С. к.",3,7,80,100,null,80,"Призер","Бариева Зиля Равилевна ","МАОУ \"Основная общеобразовательная школа № 30\""]
[20,"Советский район","МБОУ «Многопрофильная полилингвальная гимназия №180» Советского района ","Бабаев","Р.","И.",7,7,80,100,null,80,"Призер","Яруллина А.Т.","МПГ №180"]
[21,"Ново-Савиновский район","МАОУ \"Основная общеобразовательная школа № 30\" Ново-Савиновского района","Сиври","М.","Б.",3,7,80,100,null,80,"Призер","Бариева Зиля Равилевна ","МАОУ \"Основная общеобразовательная школа № 30\""]
[22,"Ново-Савиновский район","МАОУ \"Основная общеобразовательная школа № 30\" Ново-Савиновского района","Хамед","А.","М.",5,7,80,100,null,80,"Призер","Нигматзянов Рустам Саматович","МАОУ \"Основная общеобразовательная школа № 30\""]
[23,"Ново-Савиновский район","МАОУ \"Лицей-интернат 7\" Ново-Савиновского района","Шакиров","А.","И.",7,7,80,100,null,80,"Призер","Шавалеев Айрат Равилевич","Лицей-интернат №7"]
[24,"Ново-Савиновский район","МАОУ \"Основная общеобразовательная школа № 30\" Ново-Савиновского района","Абульханов","А.","Р.",6,7,78,100,null,78,"Призер","Нигматзянов Рустам Саматович","МАОУ \"Основная общеобразовательная школа № 30\""]
[25,"Советский район","МБОУ \"Лицей №149 \"Советского района ","Искандеров","Э.","Г.",7,7,78,100,null,78,"Призер","Махмутова Эндже Амировна","Лицей №149"]
[26,"Советский район","МБОУ «Многопрофильная полилингвальная гимназия №180» Советского района ","Абдуллаев","Ф.","М.",7,7,76,100,null,76,"Участник","Яруллина А.Т.","МПГ №180"]
[27,"Московский район","МБОУ \"Гимназия №12 имени Ф.Г.Аитовой\" Московского района","Валитова ","К.  ","Ф.",7,7,76,100,null,76,"Участник","Акташ Хюсейин Эмин","\"Гимназия №12\""]
[28,"Кировский район","МАОУ \"Гимназия-интернат №4\" Кировского района ","Нутфуллина","А.","Н.",7,7,76,100,null,76,"Участник","Садретдинова Дина Ринатовна","МАОУ \"Гимназия-интернат №4\""]
[29,"Ново-Савиновский район","МАОУ \"Лицей-интернат 7\" Ново-Савиновского района","Шагимарданов","А.","А.",7,7,76,100,null,76,"Участник","Шавалеев Айрат Равилевич","Лицей-интернат №7"]
[30,"Кировский район","МАОУ \"Гимназия-интернат №4\" Кировского района ","Шакирова","М.","И.",7,7,76,100,null,76,"Участник","Садретдинова Дина Ринатовна","МАОУ \"Гимназия-интернат №4\""]
[31,"Советский район","МБОУ «Многопрофильная полилингвальная гимназия №180» Советского района ","Ахмадуллин","М.","Ш.",6,7,72,100,null,72,"Участник","Яруллина А.Т.","МПГ №180"]
[32,"Советский район","МБОУ \"Лицей №149 \"Советского района ","Муслимова ","Д.","Ю.",7,7,72,100,null,72,"Участник","Махмутова Эндже Амировна","Лицей №149"]
[33,"Советский район","МБОУ «Многопрофильная полилингвальная гимназия №180» Советского района ","Файзрахманова ","З.","И.",6,7,72,100,null,72,"Участник","Яруллина А.Т.","МПГ №180"]
[34,"Кировский район","МАОУ \"Гимназия-интернат №4\" Кировского района ","Ахметзянова","М.","А.",6,7,70,100,null,70,"Участник","Газизуллина Эльвина Айратовна","МАОУ \"Гимназия-интернат №4\""]
[35,"Советский район","МБОУ «Многопрофильная полилингвальная гимназия №180» Советского района ","Замалетдинова ","М.","Р.",6,7,68,100,null,68,"Участник","Яруллина А.Т.","МПГ №180"]
[36,"Ново-Савиновский район","МАОУ \"Лицей-интернат 7\" Ново-Савиновского района","Сабиров","А. ","А.",7,7,68,100,null,68,"Участник","Шавалеев Айрат Равилевич","Лицей-интернат №7"]
[37,"Советский район","МБОУ «Многопрофильная полилингвальная гимназия №180» Советского района ","Гамзаев ","Р.","Т.",5,7,66,100,null,66,"Участник","Яруллина А.Т.","МПГ №180"]
[38,"Кировский район","МАОУ \"Гимназия-интернат №4\" Кировского района ","Латыпова","К.","И.",6,7,66,100,null,66,"Участник","Садретдинова Дина Ринатовна","МАОУ \"Гимназия-интернат №4\""]
[39,"Советский район","МБОУ «Многопрофильная полилингвальная гимназия №180» Советского района ","Хисамова","А.","Д.",6,7,66,100,null,66,"Участник","Яруллина А.Т.","МПГ №180"]
[40,"Кировский район","МАОУ \"Гимназия-интернат №4\" Кировского района ","Набиева","Р.","И.",7,7,64,100,null,64,"Участник","Садретдинова Дина Ринатовна","МАОУ \"Гимназия-интернат №4\""]
[41,"Советский район","МБОУ \"Лицей №149 \"Советского района ","Саяров ","К.","Р.",5,7,64,100,null,64,"Участник","Махмутова Эндже Амировна","Лицей №149"]
[42,"Советский район","МБОУ «Многопрофильная полилингвальная гимназия №180» Советского района ","Насибов","Р.","Р.",7,7,62,100,null,62,"Участник","Яруллина А.Т.","МПГ №180"]
[43,"Советский район","МБОУ \"Лицей №149 \"Советского района ","Тукаев ","Ю.","М.",5,7,60,100,null,60,"Участник","Махмутова Эндже Амировна","Лицей №149"]
[44,"Советский район","МБОУ «Многопрофильная полилингвальная гимназия №180» Советского района ","Юскаева","Л.","Д.",6,7,58,100,null,58,"Участник","Яруллина А.Т.","МПГ №180"]
[45,"Советский район","МБОУ «Многопрофильная полилингвальная гимназия №180» Советского района ","Ахтамова ","Э.","И.",6,7,56,100,null,56,"Участник","Яруллина А.Т.","МПГ №180"]
[46,"Советский район","МБОУ «Многопрофильная полилингвальная гимназия №180» Советского района ","Гильмуллина","Л.","И.",6,7,50,100,null,50,"Участник","Яруллина А.Т.","МПГ №180"]
[47,"Советский район","МБОУ \"Лицей №149 \"Советского района ","Аглиуллин ","А.","А.",5,7,32,100,null,32,"Участник","Махмутова Эндже Амировна","Лицей №149"]
[48,"Советский район","МБОУ «Многопрофильная полилингвальная гимназия №180» Советского района ","Гиниятуллина","Р.","А.",6,7,28,100,null,28,"Участник","Яруллина А.Т.","МПГ №180"]
[49,"Кировский район","МАОУ \"Гимназия-интернат №4\" Кировского района ","Хазеева","Д.","Р.",8,8,88,90,null,88,"Победитель","Газизуллина Эльвина Айратовна","МАОУ \"Гимназия-интернат №4\""]
[50,"Кировский район","МАОУ \"Гимназия-интернат №4\" Кировского района ","Гарапшина","М.","Р.",8,8,84,90,null,84,"Победитель","Шакирова Ирина Альбертовна","МАОУ \"Гимназия-интернат №4\""]
[51,"Кировский район","МАОУ \"Гимназия-интернат №4\" Кировского района ","Гафарова","А.","И.",8,8,84,90,null,84,"Победитель","Газизуллина Эльвина Айратовна","МАОУ \"Гимназия-интернат №4\""]
[52,"Советский район","МБОУ \"Лицей №149 \"Советского района ","Аманли","Н.","Д. о.",8,8,80,90,null,80,"Победитель","Махмутова Эндже Амировна","Лицей №149"]
[53,"Московский район","МБОУ \"Гимназия №12 имени Ф.Г.Аитовой\" Московского района","Гасымова ","С. ","М.",7,8,78,90,null,78,"Призер","Акташ Хюсейин Эмин","\"Гимназия №12\""]
[54,"Советский район","МБОУ «Многопрофильная полилингвальная гимназия №180» Советского района ","Багирзаде","З.","А. о.",8,8,74,90,null,74,"Призер","Яруллина А.Т.","МПГ №180"]
[55,"Кировский район","МАОУ \"Гимназия-интернат №4\" Кировского района ","Хайруллина","А.","Р.",8,8,74,90,null,74,"Призер","Шакирова Ирина Альбертовна","МАОУ \"Гимназия-интернат №4\""]
[56,"Кировский район","МАОУ \"Гимназия-интернат №4\" Кировского района ","Ахмадишина","Л.","М.",7,8,72,90,null,72,"Призер","Садретдинова Дина Ринатовна","МАОУ \"Гимназия-интернат №4\""]
[57,"Московский район","МБОУ \"Гимназия №12 имени Ф.Г.Аитовой\" Московского района","Гайнутдинова"," Э. ","Э.",6,8,72,90,null,72,"Призер","Акташ Хюсейин Эмин","\"Гимназия №12\""]
[58,"Кировский район","МАОУ \"Гимназия-интернат №4\" Кировского района ","Алтынбаева ","М.","А.",8,8,70,90,null,70,"Призер","Газизуллина Эльвина Айратовна","МАОУ \"Гимназия-интернат №4\""]
[59,"Московский район","МБОУ \"Гимназия №12 имени Ф.Г.Аитовой\" Московского района","Гайнутдинова ","А. ","Э.",6,8,68,90,null,68,"Призер","Акташ Хюсейин Эмин","\"Гимназия №12\""]
[60,"Кировский район","МАОУ \"Гимназия-интернат №4\" Кировского района ","Саматова","А.","К.",8,8,68,90,null,68,"Призер","Садретдинова Дина Ринатовна","МАОУ \"Гимназия-интернат №4\""]
[61,"Ново-Савиновский район","МАОУ «Лицей-интернат №7»","Хуснуллин","М.","М.",8,8,68,90,null,68,"Призер","Махмутова Эндже Амировна","МАОУ «Лицей-интернат №7»"]
[62,"Приволжский район","МБОУ «Гимназия №18» Приволжского района ","Алтай","О.","Ф.",8,8,66,90,null,66,"Призер","Садыков Равиль Хасаншович","МБОУ \"Гимназия №18\""]
[63,"Кировский район","МАОУ \"Гимназия-интернат №4\" Кировского района ","Ихсанова","А.","А.",8,8,66,90,null,66,"Призер","Газизуллина Эльвина Айратовна","МАОУ \"Гимназия-интернат №4\""]
[64,"Кировский район","МАОУ \"Гимназия-интернат №4\" Кировского района ","Бариева","А.","Р.",7,8,64,90,null,64,"Призер","Садретдинова Дина Ринатовна","МАОУ \"Гимназия-интернат №4\""]
[65,"Кировский район","МАОУ \"Гимназия-интернат №4\" Кировского района ","Гарафутдинова","А.","Р.",8,8,62,90,null,62,"Призер","Садретдинова Дина Ринатовна","МАОУ \"Гимназия-интернат №4\""]
[66,"Кировский район","МАОУ \"Гимназия-интернат №4\" Кировского района ","Фатхутдинова","З.","И.",8,8,62,90,null,{"$f":"I68","v":62},"Призер","Газизуллина Эльвина Айратовна","МАОУ \"Гимназия-интернат №4\""]
[67,"Кировский район","МАОУ \"Гимназия-интернат №4\" Кировского района ","Мифтахова","С.","Р.",8,8,60,90,null,60,"Участник","Газизуллина Эльвина Айратовна","МАОУ \"Гимназия-интернат №4\""]
[68,"Кировский район","МАОУ \"Гимназия-интернат №4\" Кировского района ","Сагдеева","Я.","Р.",8,8,60,90,null,60,"Участник","Газизуллина Эльвина Айратовна","МАОУ \"Гимназия-интернат №4\""]
[69,"Кировский район","МАОУ \"Гимназия-интернат №4\" Кировского района ","Шувалова","Д.","С.",8,8,60,90,null,60,"Участник","Газизуллина Эльвина Айратовна","МАОУ \"Гимназия-интернат №4\""]
[70,"Ново-Савиновский район","МАОУ «Лицей-интернат №7»","Кабиров","А.","Р.",8,8,58,90,null,58,"Участник","Махмутова Эндже Амировна","МАОУ «Лицей-интернат №7»"]
[71,"Кировский район","МАОУ \"Гимназия-интернат №4\" Кировского района ","Шамсуллина","Д.","Р.",8,8,58,90,null,58,"Участник","Садретдинова Дина Ринатовна","МАОУ \"Гимназия-интернат №4\""]
[72,"Кировский район","МАОУ \"Гимназия-интернат №4\" Кировского района ","Загидуллина","К.","А.",7,8,56,90,null,56,"Участник","Садретдинова Дина Ринатовна","МАОУ \"Гимназия-интернат №4\""]
[73,"Кировский район","МАОУ \"Гимназия-интернат №4\" Кировского района ","Махмутова","М.","М.",8,8,56,90,null,56,"Участник","Садретдинова Дина Ринатовна","МАОУ \"Гимназия-интернат №4\""]
[74,"Кировский район","МАОУ \"Гимназия-интернат №4\" Кировского района ","Фатхутдинова","А.","И.",8,8,56,90,null,56,"Участник","Садретдинова Дина Ринатовна","МАОУ \"Гимназия-интернат №4\""]
[75,"Ново-Савиновский район","МАОУ «Лицей-интернат №7»","Аджигитов","Ю.","Р.",8,8,54,90,null,54,"Участник","Махмутова Эндже Амировна","МАОУ «Лицей-интернат №7»"]
[76,"Кировский район","МАОУ \"Гимназия-интернат №4\" Кировского района ","Садриева ","Ж.","З.",8,8,52,90,null,52,"Участник","Шакирова Ирина Альбертовна","МАОУ \"Гимназия-интернат №4\""]
[77,"Кировский район","МАОУ \"Гимназия-интернат №4\" Кировского района ","Легасова","С.","С.",8,8,50,90,null,50,"Участник","Садретдинова Дина Ринатовна","МАОУ \"Гимназия-интернат №4\""]
[78,"Кировский район","МАОУ \"Гимназия-интернат №4\" Кировского района ","Вохидова","А.","И.",8,8,48,90,null,48,"Участник","Садретдинова Дина Ринатовна","МАОУ \"Гимназия-интернат №4\""]
[79,"Кировский район","МАОУ \"Гимназия-интернат №4\" Кировского района ","Шарипова","Н.","Ф.",8,8,48,90,null,48,"Участник","Шакирова Ирина Альбертовна","МАОУ \"Гимназия-интернат №4\""]
[80,"Кировский район","МАОУ \"Гимназия-интернат №4\" Кировского района ","Зиннатова","Р.","Р.",8,8,44,90,null,44,"Участник","Садретдинова Дина Ринатовна","МАОУ \"Гимназия-интернат №4\""]
[81,"Кировский район","МАОУ \"Гимназия-интернат №4\" Кировского района ","Зябирова","А.","Р.",8,8,42,90,null,42,"Участник","Садретдинова Дина Ринатовна","МАОУ \"Гимназия-интернат №4\""]
[82,"Кировский район","МАОУ \"Гимназия-интернат №4\" Кировского района ","Сафина ","Н.","М.",8,8,42,90,null,42,"Участник","Садретдинова Дина Ринатовна","МАОУ \"Гимназия-интернат №4\""]
[83,"Кировский район","МАОУ \"Гимназия-интернат №4\" Кировского района ","Шарипова","С.","Д.",8,8,42,90,null,42,"Участник","Садретдинова Дина Ринатовна","МАОУ \"Гимназия-интернат №4\""]
[84,"Кировский район","МАОУ \"Гимназия-интернат №4\" Кировского района ","Шагараева","З.","Л.",8,8,40,90,null,40,"Участник","Шакирова Ирина Альбертовна","МАОУ \"Гимназия-интернат №4\""]
[85,"Кировский район","МАОУ \"Гимназия-интернат №4\" Кировского района ","Шамсиева ","А.","М.",8,8,40,90,null,40,"Участник","Садретдинова Дина Ринатовна","МАОУ \"Гимназия-интернат №4\""]
[86,"Московский район","МАОУ \"Лицей-интернат №2\" Московского района ","Рахматуллин","А.","А.",8,8,38,90,null,38,"Участник","Хаббанов Ильмир Ильгизарович","МАОУ \"Лицей-интернат №2\" Московского района г. Казани"]
[87,"Кировский район","МАОУ \"Гимназия-интернат №4\" Кировского района ","Бибарсова","К.","Ж.",8,8,32,90,null,32,"Участник","Шакирова Ирина Альбертовна","МАОУ \"Гимназия-интернат №4\""]
[88,"Московский район","МАОУ \"Лицей-интернат №2\" Московского района ","Сафиуллин","А.","Б.",8,8,30,90,null,30,"Участник","Хаббанов Ильмир Ильгизарович","МАОУ \"Лицей-интернат №2\" Московского района г. Казани"]
[89,"Кировский район","МАОУ \"Гимназия-интернат №4\" Кировского района ","Байрашева","А.","Р.",7,9,99,100,null,99,"Победитель","Садретдинова Дина Ринатовна","МАОУ \"Гимназия-интернат №4\""]
[90,"Советский район","МБОУ \"Лицей №149 \"Советского района ","Аманов","Д.","А. о.",9,9,98,100,null,98,"Победитель","Махмутова Эндже Амировна","Лицей №149"]
[91,"Кировский район","МАОУ \"Гимназия-интернат №4\" Кировского района ","Исмагилова","И.","А.",9,9,98,100,null,98,"Победитель","Садретдинова Дина Ринатовна","МАОУ \"Гимназия-интернат №4\""]
[92,"Московский район","МБОУ \"Гимназия №12 имени Ф.Г.Аитовой\" Московского района","Калафат ","Я. ","Х.",7,9,98,100,null,98,"Победитель","Акташ Хюсейин Эмин","\"Гимназия №12\""]
[93,"Кировский район","МАОУ \"Гимназия-интернат №4\" Кировского района ","Озбаян","А.","У.",8,9,98,100,null,98,"Победитель","Газизуллина Эльвина Айратовна","МАОУ \"Гимназия-интернат №4\""]
[94,"Московский район","МБОУ \"Татарская гимназия №2 при КФУ\" Московского района ","Таш ","Ш. ","А.",9,9,98,100,null,98,"Победитель","Нигматуллина Эндже Табрисовна","Гимназия №2"]
[95,"Кировский район","МАОУ \"Гимназия-интернат №4\" Кировского района ","Аслан","Э.","О.",7,9,96,100,null,96,"Призер","Садретдинова Дина Ринатовна","МАОУ \"Гимназия-интернат №4\""]
[96,"Московский район","МАОУ \"Лицей-интернат №2\" Московского района ","Кескин","М. Э.","М.",9,9,96,100,null,96,"Призер","Хаббанов Ильмир Ильгизарович","МАОУ \"Лицей-интернат №2\" Московского района г. Казани"]
[97,"Кировский район","МАОУ \"Гимназия-интернат №4\" Кировского района ","Учар ","М.","Х.",8,9,96,100,null,96,"Призер","Садретдинова Дина Ринатовна","МАОУ \"Гимназия-интернат №4\""]
[98,"Советский район","МБОУ \"Лицей №149 \"Советского района ","Аккая","И.","Д.",9,9,94,100,null,94,"Призер","Махмутова Эндже Амировна","Лицей №149"]
[99,"Кировский район","МАОУ \"Гимназия-интернат №4\" Кировского района ","Кутлу","Р.","Ф.",8,9,94,100,null,94,"Призер","Садретдинова Дина Ринатовна","МАОУ \"Гимназия-интернат №4\""]
[100,"Московский район","МАОУ \"Лицей-интернат №2\" Московского района ","Марданов","Б.","Р.",9,9,94,100,null,94,"Призер","Хаббанов Ильмир Ильгизарович","МАОУ \"Лицей-интернат №2\" Московского района г. Казани"]
[101,"Московский район","МАОУ \"Лицей-интернат №2\" Московского района ","Кючуккара","А.","Д.",9,9,92,100,null,92,"Призер","Хаббанов Ильмир Ильгизарович","МАОУ \"Лицей-интернат №2\" Московского района г. Казани"]
[102,"Ново-Савиновский район","МАОУ \"СОШ №165\" Ново-Савиновского района","Хисамутдинова","Р.","К.",9,9,92,100,1,93,"Призер","Эстис Валентина Александровна","МАОУ \"СОШ №165\""]
[103,"Авиастроительный район","МБОУ \"Школа №112\" Авиастроительного района","Кючуккара","Д.","Д.",7,9,90,100,null,90,"Призер","",""]
[104,"Кировский район","МАОУ \"Гимназия-интернат №4\" Кировского района ","Хамед","М.","М.",7,9,90,100,null,90,"Призер","Садретдинова Дина Ринатовна","МАОУ \"Гимназия-интернат №4\""]
[105,"Кировский район","МАОУ \"Гимназия-интернат №4\" Кировского района ","Унлюсой","Я.","Х.",8,9,89,100,null,89,"Призер","Газизуллина Эльвина Айратовна","МАОУ \"Гимназия-интернат №4\""]
[106,"Приволжский район","МАОУ «Гимназия №19» Приволжского района ","Акман","Н. ","М.",9,9,88,100,null,88,"Призер","Гарипова Гульшат Рафисовна","МАОУ \"Гимназия №19\""]
[107,"Кировский район","МАОУ \"Гимназия-интернат №4\" Кировского района ","Ахмадуллина","М.","Ш.",9,9,88,100,null,88,"Призер","Газизуллина Эльвина Айратовна","МАОУ \"Гимназия-интернат №4\""]
[108,"Кировский район","МАОУ \"Гимназия-интернат №4\" Кировского района ","Аян","А.","М.",9,9,88,100,null,88,"Призер","Газизуллина Эльвина Айратовна","МАОУ \"Гимназия-интернат №4\""]
[109,"Московский район","МАОУ \"Лицей-интернат №2\" Московского района ","Кэрулы","А.","М.",8,9,88,100,null,88,"Призер","Хаббанов Ильмир Ильгизарович","МАОУ \"Лицей-интернат №2\" Московского района г. Казани"]
[110,"Кировский район","МАОУ \"Гимназия-интернат №4\" Кировского района ","Садриева ","Р.","З.",9,9,88,100,null,88,"Призер","Садретдинова Дина Ринатовна","МАОУ \"Гимназия-интернат №4\""]
[111,"Кировский район","МАОУ \"Гимназия-интернат №4\" Кировского района ","Ахматуллаева","Р.","С.",9,9,86,100,null,86,"Призер","Газизуллина Эльвина Айратовна","МАОУ \"Гимназия-интернат №4\""]
[112,"Ново-Савиновский район","МАОУ «Лицей-интернат №7»","Бешлер","Д.","А.",10,9,85,100,null,85,"Призер","Махмутова Эндже Амировна","МАОУ «Лицей-интернат №7»"]
[113,"Московский район","МАОУ \"Лицей-интернат №2\" Московского района ","Наумов","Ю.","А.",9,9,83,100,null,83,"Призер","Хаббанов Ильмир Ильгизарович","МАОУ \"Лицей-интернат №2\" Московского района г. Казани"]
[114,"Кировский район","МАОУ \"Гимназия-интернат №4\" Кировского района ","Шакирова","Э.","Р.",9,9,81,100,null,81,"Участник","Садретдинова Дина Ринатовна","МАОУ \"Гимназия-интернат №4\""]
[115,"Ново-Савиновский район","МАОУ «Лицей-интернат №7»","Сарачоглу","Б.",null,10,9,81,100,null,81,"Участник","Махмутова Эндже Амировна","МАОУ «Лицей-интернат №7»"]
[116,"Кировский район","МАОУ \"Гимназия-интернат №4\" Кировского района ","Хасанзянова","А.","И.",9,9,80,100,null,80,"Участник","Газизуллина Эльвина Айратовна","МАОУ \"Гимназия-интернат №4\""]
[117,"Советский район","МБОУ «Многопрофильная полилингвальная гимназия №180» Советского района ","Заманов ","З.","Н.",9,9,78,100,null,78,"Участник","Яруллина А.Т.","МПГ №180"]
[118,"Кировский район","МАОУ \"Гимназия-интернат №4\" Кировского района ","Хайруллина","З.","Ф.",9,9,78,100,null,78,"Участник","Газизуллина Эльвина Айратовна","МАОУ \"Гимназия-интернат №4\""]
[119,"Московский район","МАОУ \"Лицей-интернат №2\" Московского района ","Шакирзянов","Ю.","Р.",9,9,78,100,null,78,"Участник","Сафин Рустам Ришатович","МАОУ «Лицей-интернат №2» Московского района"]
[120,"Московский район","МБОУ \"Гимназия №12 имени Ф.Г.Аитовой\" Московского района","Йылдырым ","З. Ф. ","Х.",7,9,76,100,null,76,"Участник","Акташ Хюсейин Эмин","\"Гимназия №12\""]
[121,"Кировский район","МАОУ \"Гимназия-интернат №4\" Кировского района ","Гильмиева","З.","И.",9,9,74,100,null,74,"Участник","Газизуллина Эльвина Айратовна","МАОУ \"Гимназия-интернат №4\""]
[122,"Ново-Савиновский район","МАОУ «Лицей-интернат №7»","Шангараев","Й.","Р.",10,9,73,100,null,73,"Участник","Махмутова Эндже Амировна","МАОУ «Лицей-интернат №7»"]
[123,"Кировский район","МАОУ \"Гимназия-интернат №4\" Кировского района ","Уденазарова","Ч.","К.",9,9,70,100,null,70,"Участник","Газизуллина Эльвина Айратовна","МАОУ \"Гимназия-интернат №4\""]
[124,"Кировский район","МАОУ \"Гимназия-интернат №4\" Кировского района ","Батталова","А.","И.",9,9,69,100,null,69,"Участник","Газизуллина Эльвина Айратовна","МАОУ \"Гимназия-интернат №4\""]
[125,"Советский район","МБОУ «Многопрофильная полилингвальная гимназия №180» Советского района ","Йылдыз","А.","Р.",9,9,69,100,null,69,"Участник","Яруллина А.Т.","МПГ №180"]
[126,"Московский район","МБОУ \"Гимназия №12 имени Ф.Г.Аитовой\" Московского района","Акташ ","Э. ","Б.",7,9,67,100,null,67,"Участник","Акташ Хюсейин Эмин","\"Гимназия №12\""]
[127,"Кировский район","МАОУ \"Гимназия-интернат №4\" Кировского района ","Галияхметова","А.","А.",9,9,67,100,null,67,"Участник","Садретдинова Дина Ринатовна","МАОУ \"Гимназия-интернат №4\""]
[128,"Приволжский район","МАОУ «Гимназия №19» Приволжского района ","Гювенч","Э.","Х.",8,9,67,100,null,67,"Участник","Хайбуллина Лейля Минненакиповна","МАОУ \"Гимназия №19\""]
[129,"Кировский район","МАОУ \"Гимназия-интернат №4\" Кировского района ","Муртазина","М.","Т.",9,9,67,100,null,67,"Участник","Газизуллина Эльвина Айратовна","МАОУ \"Гимназия-интернат №4\""]
[130,"Кировский район","МАОУ \"Гимназия-интернат №4\" Кировского района ","Гафиятуллина","К.","Р.",9,9,66,100,null,{"$f":"I132","v":66},"Участник","Газизуллина Эльвина Айратовна","МАОУ \"Гимназия-интернат №4\""]
[131,"Кировский район","МАОУ \"Гимназия-интернат №4\" Кировского района ","Абдуллина","Э.","Н.",9,9,65,100,null,65,"Участник","Газизуллина Эльвина Айратовна","МАОУ \"Гимназия-интернат №4\""]
[132,"Кировский район","МАОУ \"Гимназия-интернат №4\" Кировского района ","Габидуллина","А.","А.",8,9,65,100,null,65,"Участник","Садретдинова Дина Ринатовна","МАОУ \"Гимназия-интернат №4\""]
[133,"Ново-Савиновский район","МАОУ \"Основная общеобразовательная школа № 30\" Ново-Савиновского района","Гасанов","Ю.","Ф.",5,9,65,100,null,65,"Участник","Нигматзянов Рустам Саматович","МАОУ \"Основная общеобразовательная школа № 30\""]
[134,"Кировский район","МАОУ \"Гимназия-интернат №4\" Кировского района ","Хайруллина","Р.","Д.",9,9,63,100,null,63,"Участник","Газизуллина Эльвина Айратовна","МАОУ \"Гимназия-интернат №4\""]
[135,"Ново-Савиновский район","МАОУ \"Основная общеобразовательная школа № 30\" Ново-Савиновского района","Сиври","Э. ","С.",6,9,61,100,null,61,"Участник","Нигматзянов Рустам Саматович","МАОУ \"Основная общеобразовательная школа № 30\""]
[136,"Ново-Савиновский район","МБОУ \"Школа №113\" Ново-Савиновского района","Дорофеева","М.","С.",9,9,60,100,null,60,"Участник","Мухаметзянов Ильяс Мулланурович","МБОУ «Средняя общеобразовательная татарско-русская школа №113 с углублённым изучением отдельных предметов им. Героя М.Р.Ахметшина» Ново-Савиновского района г. Казани"]
[137,"Кировский район","МАОУ \"Гимназия-интернат №4\" Кировского района ","Латыпова","З.","Р.",9,9,60,100,null,60,"Участник","Газизуллина Эльвина Айратовна","МАОУ \"Гимназия-интернат №4\""]
[138,"Московский район","МАОУ \"Лицей-интернат №2\" Московского района ","Сабирзанов","Р.","Р.",9,9,59,100,null,59,"Участник","Хаббанов Ильмир Ильгизарович","МАОУ \"Лицей-интернат №2\" Московского района г. Казани"]
[139,"Кировский район","МАОУ \"Гимназия-интернат №4\" Кировского района ","Солдатова","К.","Э.",9,9,52,100,null,52,"Участник","Газизуллина Эльвина Айратовна","МАОУ \"Гимназия-интернат №4\""]
[140,"Советский район","МБОУ «Многопрофильная полилингвальная гимназия №180» Советского района ","Юскаев","М.","Д.",9,9,42,100,null,42,"Участник","Яруллина А.Т.","МПГ №180"]
[141,"Ново-Савиновский район","МАОУ \"Лицей-интернат 7\" Ново-Савиновского района","Алтун","А. К.","Х.",9,9,22,100,null,22,"Участник","Хатбуллин Разяб Накипович","Лицей-интернат №7"]
[142,"Ново-Савиновский район","МБОУ \"Школа №113\" Ново-Савиновского района","Мойоршина","Д.","А.",9,9,12,100,null,12,"Участник","Мухаметзянов Ильяс Мулланурович","МБОУ «Средняя общеобразовательная татарско-русская школа №113 с углублённым изучением отдельных предметов им. Героя М.Р.Ахметшина» Ново-Савиновского района г. Казани"]
[143,"Ново-Савиновский район","МБОУ \"Школа №113\" Ново-Савиновского района","Резщикова","А.","М.",9,9,8,100,null,8,"Участник","Мухаметзянов Ильяс Мулланурович","МБОУ «Средняя общеобразовательная татарско-русская школа №113 с углублённым изучением отдельных предметов им. Героя М.Р.Ахметшина» Ново-Савиновского района г. Казани"]
[144,"Ново-Савиновский район","МАОУ «Лицей-интернат №7»","Гасымов","Р.","З. о.",10,10,94,100,null,94,"Победитель","Махмутова Эндже Амировна","МАОУ «Лицей-интернат №7»"]
[145,"Ново-Савиновский район","МБОУ \"Школа №113\" Ново-Савиновского района","Маликова  ","Г.","Х. к.",10,10,88,100,null,88,"Победитель","Мухаметзянов Ильяс Мулланурович","МБОУ «Средняя общеобразовательная татарско-русская школа №113 с углублённым изучением отдельных предметов им. Героя М.Р.Ахметшина» Ново-Савиновского района г. Казани"]
[146,"Советский район","МБОУ \"Лицей №149 \"Советского района ","Аккая","С.","Д.",10,10,87,100,null,87,"Призер","Махмутова Эндже Амировна","Лицей №149"]
[147,"Кировский район","МАОУ \"Гимназия-интернат №4\" Кировского района ","Гизитдинова","Л.","Р.",10,10,87,100,null,87,"Призер","Шакирова Ирина Альбертовна","МАОУ \"Гимназия-интернат №4\""]
[148,"Кировский район","МАОУ \"Гимназия-интернат №4\" Кировского района ","Карагез","Р. Р.","Т.",10,10,86,100,null,86,"Призер","Шакирова Ирина Альбертовна","МАОУ \"Гимназия-интернат №4\""]
[149,"Кировский район","МАОУ \"Гимназия-интернат №4\" Кировского района ","Ахмадишина","Н.","М.",10,10,82,100,null,82,"Призер","Шакирова Ирина Альбертовна","МАОУ \"Гимназия-интернат №4\""]
[150,"Кировский район","МАОУ \"Гимназия-интернат №4\" Кировского района ","Оздемир","Х.","Х.",10,10,82,100,null,82,"Призер","Шакирова Ирина Альбертовна","МАОУ \"Гимназия-интернат №4\""]
[151,"Московский район","МАОУ \"Лицей-интернат №2\" Московского района ","Акташ","Э.","Х.",10,10,80,100,null,80,"Призер","Хаббанов Ильмир Ильгизарович","МАОУ \"Лицей-интернат №2\" Московского района г. Казани"]
[152,"Московский район","МАОУ \"Лицей-интернат №2\" Московского района ","Ахмадуллин","М.","Ш.",10,10,80,100,null,80,"Призер","Хаббанов Ильмир Ильгизарович","МАОУ \"Лицей-интернат №2\" Московского района г. Казани"]
[153,"Кировский район","МАОУ \"Гимназия-интернат №4\" Кировского района ","Мамедова","А.","З.",10,10,75,100,null,75,"Призер","Шакирова Ирина Альбертовна","МАОУ \"Гимназия-интернат №4\""]
[154,"Кировский район","МАОУ \"Гимназия-интернат №4\" Кировского района ","Сайфуллина","А.","Р.",10,10,72,100,null,72,"Участник","Шакирова Ирина Альбертовна","МАОУ \"Гимназия-интернат №4\""]
[155,"Ново-Савиновский район","МАОУ \"Лицей-интернат 7\" Ново-Савиновского района","Валиуллин","Ю.","И.",10,10,66,100,null,66,"Участник","Шавалеев Айрат Равилевич","Лицей-интернат №7"]
[156,"Кировский район","МАОУ \"Гимназия-интернат №4\" Кировского района ","Гафарова","Д.","И.",10,10,65,100,null,65,"Участник","Шакирова Ирина Альбертовна","МАОУ \"Гимназия-интернат №4\""]
[157,"Московский район","МБОУ \"Гимназия №12 имени Ф.Г.Аитовой\" Московского района","Зарипова ","З. ","Н.",8,10,62,100,null,62,"Участник","Акташ Хюсейин Эмин","\"Гимназия №12\""]
[158,"Кировский район","МАОУ \"Гимназия-интернат №4\" Кировского района ","Кашапова","А.","М.",10,10,56,100,null,56,"Участник","Шакирова Ирина Альбертовна","МАОУ \"Гимназия-интернат №4\""]
[159,"Кировский район","МАОУ \"Гимназия-интернат №4\" Кировского района ","Гюль","Д.","Б.",10,10,55,100,null,55,"Участник","Шакирова Ирина Альбертовна","МАОУ \"Гимназия-интернат №4\""]
[160,"Московский район","МБОУ \"Гимназия №12 имени Ф.Г.Аитовой\" Московского района","Доган ","С. ","Т.",9,10,55,100,null,55,"Участник","Акташ Хюсейин Эмин","\"Гимназия №12\""]
[161,"Ново-Савиновский район","МАОУ \"Лицей-интернат 7\" Ново-Савиновского района","Сабиров","И.","А.",10,10,53,100,null,53,"Участник","Шавалеев Айрат Равилевич","Лицей-интернат №7"]
[162,"Кировский район","МАОУ \"Гимназия-интернат №4\" Кировского района ","Сулейманова","К.","И.",10,10,50,100,null,50,"Участник","Шакирова Ирина Альбертовна","МАОУ \"Гимназия-интернат №4\""]
[163,"Приволжский район","МБОУ «Гимназия №18» Приволжского района ","Халиуллина ","Г.","Р.",10,10,41,100,null,41,"Участник","Валияхметова Гульназ Мазитовна","МБОУ \"Гимназия №18\""]
[164,"Московский район","МАОУ \"Лицей-интернат №2\" Московского района ","Хамитов","Р.","И.",10,10,40,100,null,40,"Участник","Хаббанов Ильмир Ильгизарович","МАОУ \"Лицей-интернат №2\" Московского района г. Казани"]
[165,"Московский район","МБОУ \"Гимназия №12 имени Ф.Г.Аитовой\" Московского района","Бабаева ","Р. ","И.",8,10,38,100,null,38,"Участник","Акташ Хюсейин Эмин","\"Гимназия №12\""]
[166,"Московский район","МАОУ \"Лицей-интернат №2\" Московского района ","Минуллин","В.","М.",10,10,24,100,null,24,"Участник","Хаббанов Ильмир Ильгизарович","МАОУ \"Лицей-интернат №2\" Московского района г. Казани"]
[167,"Московский район","МБОУ \"Гимназия №12 имени Ф.Г.Аитовой\" Московского района","Аджароглу ","С. ","А.",11,11,93,100,null,93,"Победитель","Акташ Хюсейин Эмин","\"Гимназия №12\""]
[168,"Кировский район","МАОУ \"Гимназия-интернат №4\" Кировского района ","Галаветдинова","Д.","Т.",11,11,91,100,null,91,"Победитель","Гиззатуллин Тагир Радикович","МАОУ \"Гимназия-интернат №4\""]
[169,"Кировский район","МАОУ \"Гимназия-интернат №4\" Кировского района ","Учар ","А.","Х.",11,11,91,100,null,91,"Победитель","Гиззатуллин Тагир Радикович","МАОУ \"Гимназия-интернат №4\""]
[170,"Московский район","МБОУ \"Гимназия №12 имени Ф.Г.Аитовой\" Московского района","Ашит ","И. ","И.",11,11,85,100,null,85,"Призер","Акташ Хюсейин Эмин","\"Гимназия №12\""]
[171,"Советский район","МБОУ \"Лицей №149 \"Советского района ","Залялиева","Ф.","А.",11,11,83,100,null,83,"Призер","Махмутова Эндже Амировна","Лицей №149"]
[172,"Московский район","МБОУ \"Гимназия №12 имени Ф.Г.Аитовой\" Московского района","Гасанова ","Ф. ","Ф.",11,11,82,100,null,82,"Призер","Акташ Хюсейин Эмин","\"Гимназия №12\""]
[173,"Московский район","МБОУ \"Гимназия №12 имени Ф.Г.Аитовой\" Московского района","Мамаджанова ","М. ","О.",11,11,81,100,null,81,"Призер","Акташ Хюсейин Эмин","\"Гимназия №12\""]
[174,"Кировский район","МАОУ \"Гимназия-интернат №4\" Кировского района ","Гараева","Э.","Р.",11,11,80,100,null,80,"Участник","Гиззатуллин Тагир Радикович","МАОУ \"Гимназия-интернат №4\""]
[175,"Кировский район","МАОУ \"Гимназия-интернат №4\" Кировского района ","Кормушкина","Л.","Р.",11,11,74,100,null,74,"Участник","Гиззатуллин Тагир Радикович","МАОУ \"Гимназия-интернат №4\""]
[176,"Советский район","МАОУ Лицей №121 им. Героя Советского Союза С.А.Ахтямова Советского района ","Аблаяров","М.","О.",11,11,69,100,null,69,"Участник","Валиуллина Рамзия Хашимовна","Муниципальное автономное общеобразовательное учреждение \"Лицей №121 имени Героя Советского Союза С.А.Ахтямова\" Советского района г.Казани"]
[177,"Кировский район","МАОУ \"Гимназия-интернат №4\" Кировского района ","Гиматдинова","А.","Р.",11,11,67,100,null,67,"Участник","Гиззатуллин Тагир Радикович","МАОУ \"Гимназия-интернат №4\""]
[178,"Московский район","МАОУ \"Лицей-интернат №2\" Московского района ","Богданов","А.","И.",11,11,65,100,null,65,"Участник","Хаббанов Ильмир Ильгизарович","МАОУ \"Лицей-интернат №2\" Московского района г. Казани"]
[179,"Кировский район","МАОУ \"Гимназия-интернат №4\" Кировского района ","Залялова","Д.","Ф.",11,11,62,100,null,62,"Участник","Гиззатуллин Тагир Радикович","МАОУ \"Гимназия-интернат №4\""]
[180,"Кировский район","МАОУ \"Гимназия-интернат №4\" Кировского района ","Сергеева","А.","А.",11,11,61,100,null,61,"Участник","Гиззатуллин Тагир Радикович","МАОУ \"Гимназия-интернат №4\""]
[181,"Кировский район","МАОУ \"Гимназия-интернат №4\" Кировского района ","Халиуллина","К.","И.",11,11,47,100,null,47,"Участник","Гиззатуллин Тагир Радикович","МАОУ \"Гимназия-интернат №4\""]
[182,"Московский район","МБОУ \"Гимназия №12 имени Ф.Г.Аитовой\" Московского района","Адыгамова ","М. ","Р.",11,11,45,100,null,45,"Участник","Акташ Хюсейин Эмин","\"Гимназия №12\""]